bitfinex/quotes_BTCUSD_20250410
["timestamp","ask_amount","ask_price","bid_price","bid_amount"]
[1744260026520,0.00076339,81730.0,81729.0,0.43854654]
[1744260026727,0.00076339,81730.0,81729.0,0.41185492]
[1744260028639,0.00076339,81730.0,81729.0,0.40041186]
[1744260032250,0.00076339,81730.0,81729.0,0.43857118]
[1744260032466,0.00076339,81730.0,81729.0,0.48507118]
[1744260041077,0.00076339,81730.0,81729.0,0.48407118]
[1744260043285,0.00076339,81730.0,81729.0,0.87067118]
[1744260045188,0.00076339,81730.0,81729.0,1.01663118]
[1744260046590,3.9e-07,81730.0,81729.0,1.13117203]
[1744260046823,3.9e-07,81730.0,81729.0,0.98521203]
[1744260047078,3.9e-07,81730.0,81729.0,1.13113203]
[1744260048632,1.9e-07,81737.0,81736.0,0.70766485]
[1744260048831,6e-08,81737.0,81736.0,2.12557799]
[1744260050635,6e-08,81739.0,81738.0,0.596918]
[1744260050787,6e-08,81739.0,81738.0,1.01637199]
[1744260051308,6e-08,81739.0,81738.0,1.03036417]
[1744260053540,6e-08,81739.0,81738.0,1.0531338]
[1744260054242,6e-08,81739.0,81738.0,1.4669338]
[1744260055428,4.6e-07,81747.0,81746.0,0.596893]
[1744260055628,4.6e-07,81747.0,81746.0,0.96526699]
[1744260055971,4.6e-07,81747.0,81746.0,0.98803662]
[1744260057192,4.6e-07,81747.0,81746.0,1.00053319]
[1744260061773,4.6e-07,81747.0,81746.0,1.04773319]
[1744260061960,4.6e-07,81753.0,81752.0,0.596874]
[1744260062185,0.000337,81763.0,81762.0,0.596842]
[1744260062391,0.0489,81784.0,81783.0,0.256776]
[1744260062563,0.0489,81784.0,81783.0,0.37732982]
[1744260062913,0.04902787,81784.0,81783.0,0.40009945]
[1744260063460,0.04902787,81784.0,81783.0,0.41146432]
[1744260064229,0.35300087,81784.0,81783.0,0.0341345]
[1744260064454,0.36626841,81784.0,81783.0,0.01136487]
[1744260064865,0.244555,81782.0,81778.0,0.244561]
[1744260065081,0.09622787,81784.0,81782.0,0.244549]
[1744260065419,0.09622787,81784.0,81780.0,0.256784]
[1744260065622,0.34077687,81784.0,81781.0,0.244554]
[1744260065832,0.244549,81783.0,81779.0,0.012228]
[1744260066046,0.244549,81783.0,81780.0,0.244558]
[1744260066651,0.35300387,81784.0,81780.0,0.244558]
[1744260067097,0.35300387,81784.0,81780.0,0.243558]
[1744260067757,0.34077487,81784.0,81781.0,0.244554]
[1744260068110,0.24455,81783.0,81779.0,0.256787]
[1744260068545,0.24455,81783.0,81780.0,0.244555]
[1744260069078,0.24455,81783.0,81779.0,0.256787]
[1744260069301,0.09622787,81784.0,81780.0,0.244558]
[1744260069501,0.09622787,81784.0,81781.0,0.244554]
[1744260069698,0.09622787,81784.0,81782.0,0.244551]
[1744260069903,0.09622787,81784.0,81783.0,0.244549]
[1744260070125,0.09622787,81784.0,81783.0,0.37732982]
[1744260070347,0.04902787,81784.0,81783.0,0.37732982]
[1744260071058,0.00012787,81784.0,81783.0,0.37732982]
[1744260071441,0.00012787,81784.0,81783.0,0.40007446]
[1744260073442,0.00012787,81784.0,81783.0,0.74007446]
[1744260076980,0.00012787,81784.0,81783.0,0.78697446]
[1744260077190,0.00012787,81784.0,81783.0,0.80151531]
[1744260077416,8.7e-07,81784.0,81783.0,0.80151531]
[1744260079282,8.7e-07,81784.0,81783.0,0.8393985]
[1744260079499,8.7e-07,81784.0,81783.0,0.80151531]
[1744260080396,8.7e-07,81784.0,81783.0,0.8394063]
[1744260089737,2.7e-07,81786.0,81785.0,0.74477]
[1744260089940,2.7e-07,81786.0,81785.0,0.91775566]
[1744260090346,6.7e-07,81796.0,81795.0,0.596738]
[1744260090550,1.7e-07,81802.0,81801.0,0.596719]
[1744260090863,1.7e-07,81802.0,81801.0,0.75516381]
[1744260091063,1.7e-07,81802.0,81801.0,0.77790845]
[1744260092654,1.7e-07,81802.0,81801.0,0.78725563]
[1744260093157,1.7e-07,81802.0,81801.0,0.7993278]
[1744260093873,1.7e-07,81802.0,81801.0,0.81068716]
[1744260097294,1.7e-07,81802.0,81801.0,0.87322801]
[1744260097699,1.7e-07,81802.0,81801.0,1.28702801]
[1744260098104,1.7e-07,81802.0,81801.0,1.29202801]
[1744260099239,1.7e-07,81802.0,81801.0,1.28066865]
[1744260099653,1.7e-07,81802.0,81801.0,1.27566865]
[1744260100089,1.7e-07,81802.0,81801.0,1.42198865]
[1744260103890,1.7e-07,81802.0,81801.0,1.43334667]
[1744260104839,1.7e-07,81802.0,81801.0,1.22448582]
[1744260105265,1.7e-07,81802.0,81801.0,1.33291483]
[1744260105773,1.7e-07,81802.0,81801.0,1.3594062]
[1744260106964,1.7e-07,81802.0,81801.0,0.9456062]
[1744260110631,1.7e-07,81802.0,81801.0,0.96014705]
[1744260110807,1.7e-07,81802.0,81801.0,1.05754705]
[1744260111576,1.7e-07,81802.0,81801.0,0.96014705]
[1744260111757,1.7e-07,81802.0,81801.0,0.9456062]
[1744260112051,1.7e-07,81802.0,81801.0,0.95697606]
[1744260114796,1.7e-07,81802.0,81801.0,0.97151691]
[1744260115533,1.7e-07,81802.0,81801.0,1.07391691]
[1744260115789,7e-08,81815.0,81814.0,0.012222]
[1744260115917,7e-08,81817.0,81816.0,0.012222]
[1744260116119,6.7e-07,81819.0,81818.0,0.27120685]
[1744260116341,6.7e-07,81819.0,81818.0,0.58977992]
[1744260116543,0.00042691,81819.0,81818.0,0.57523907]
[1744260116926,0.00042691,81819.0,81818.0,0.59798371]
[1744260117317,0.00042691,81819.0,81818.0,0.44918371]
[1744260117518,0.00042691,81819.0,81818.0,0.59798371]
[1744260120389,0.00042691,81819.0,81818.0,0.58661385]
[1744260124079,0.00042691,81819.0,81818.0,0.6011547]
[1744260124364,0.00042691,81819.0,81818.0,1.4036547]
[1744260124365,9.1e-07,81819.0,81818.0,1.4036547]
[1744260124727,9.1e-07,81819.0,81818.0,1.3549147]
[1744260126693,9.1e-07,81819.0,81818.0,1.34037385]
[1744260127450,9.1e-07,81819.0,81818.0,1.19161385]
[1744260127649,9.1e-07,81819.0,81818.0,1.00037385]
[1744260127852,9.1e-07,81819.0,81818.0,1.34037385]
[1744260133526,9.1e-07,81819.0,81818.0,0.92657385]
[1744260134955,9.1e-07,81819.0,81818.0,0.93417385]
[1744260135793,9.1e-07,81819.0,81818.0,0.43781385]
[1744260135959,0.30436491,81819.0,81818.0,0.02274464]
[1744260136175,0.3635981,81819.0,81818.0,0.02274464]
[1744260136783,0.1069341,81819.0,81818.0,0.02274464]
[1744260136986,0.0477,81818.0,81817.0,1.3278]
[1744260137439,0.07376004,81818.0,81817.0,1.35057348]
[1744260137598,0.31820404,81818.0,81817.0,1.35057348]
[1744260139040,0.30598204,81818.0,81817.0,1.35057348]
[1744260140260,0.06153804,81818.0,81817.0,1.35057348]
[1744260140681,0.30598204,81818.0,81817.0,1.35057348]
[1744260141158,0.06153804,81818.0,81817.0,1.35057348]
[1744260141384,0.06153804,81818.0,81817.0,0.33722048]
[1744260141604,0.01383804,81818.0,81817.0,0.4699963]
[1744260142066,0.04540091,81819.0,81818.0,0.244444]
[1744260142294,0.04540091,81819.0,81818.0,0.36499782]
[1744260142515,0.04540091,81819.0,81818.0,0.3877713]
[1744260142745,0.04540091,81819.0,81818.0,0.1433273]
[1744260143170,0.04540091,81819.0,81818.0,0.12055382]
[1744260143447,0.04540091,81819.0,81818.0,0.36499782]
[1744260143859,0.04540091,81819.0,81818.0,0.3877713]
[1744260146156,0.04540091,81819.0,81818.0,0.1433273]
[1744260146407,0.28984291,81819.0,81818.0,0.1433273]
[1744260146968,0.28984291,81819.0,81818.0,0.12055382]
[1744260148479,0.30206491,81819.0,81818.0,0.12055382]
[1744260150625,0.30206491,81819.0,81817.0,0.07]
[1744260150626,0.305566,81818.0,81817.0,0.07]
[1744260153179,0.505566,81818.0,81817.0,0.07]
[1744260153743,0.51719034,81818.0,81817.0,0.07]
[1744260153937,0.244472,81809.0,81805.0,0.02277348]
[1744260154236,0.01167778,81808.0,81805.0,0.36503682]
[1744260155160,0.244478,81807.0,81805.0,0.12055382]
[1744260155677,0.01167778,81806.0,81805.0,0.12055382]
[1744260156287,0.01167778,81806.0,81805.0,0.36503682]
[1744260156631,0.01167778,81806.0,81805.0,0.3878103]
[1744260156981,0.256695,81809.0,81806.0,0.24448]
[1744260157189,0.256695,81809.0,81806.0,0.02277348]
[1744260157363,0.256695,81809.0,81806.0,0.26725348]
[1744260157686,0.244472,81809.0,81806.0,0.26725148]
[1744260157825,0.244472,81809.0,81806.0,0.26725348]
[1744260158271,0.244475,81808.0,81806.0,0.02277348]
[1744260159096,0.244475,81808.0,81807.0,0.07]
[1744260159298,0.244472,81809.0,81807.0,0.07]
[1744260159540,0.244469,81810.0,81808.0,0.244472]
[1744260159734,0.244469,81810.0,81807.0,0.314477]
[1744260159970,0.2,81817.0,81815.0,0.244451]
[1744260160142,0.244445,81818.0,81814.0,0.244451]
[1744260160321,0.244445,81818.0,81813.0,0.02277348]
[1744260160729,0.24445,81817.0,81813.0,0.26723148]
[1744260160945,0.24445,81817.0,81813.0,0.244458]
[1744260161152,0.244456,81815.0,81812.0,0.256685]
[1744260161352,0.244456,81815.0,81812.0,0.244462]
[1744260161666,0.244454,81815.0,81813.0,0.26723148]
[1744260161865,0.244451,81816.0,81813.0,0.26723148]
[1744260162041,0.24445,81817.0,81814.0,0.244456]
[1744260162248,0.24445,81817.0,81814.0,0.26722948]
[1744260162867,0.24445,81817.0,81815.0,0.244453]
[1744260163389,0.24445,81817.0,81814.0,0.26722948]
[1744260163597,0.24445,81817.0,81815.0,0.02277253]
[1744260163967,0.244445,81818.0,81815.0,0.38777835]
[1744260164172,0.24445,81816.0,81815.0,0.02277253]
[1744260164496,0.352772,81816.0,81815.0,0.02277253]
[1744260165204,0.256697,81808.0,81802.0,0.244492]
[1744260165344,0.256697,81808.0,81802.0,0.256716]
[1744260166017,0.256697,81808.0,81801.0,0.244495]
[1744260166196,0.256697,81808.0,81802.0,0.244492]
[1744260166993,0.256697,81808.0,81800.0,0.012224]
[1744260167196,0.256697,81808.0,81794.0,0.397956]
[1744260167197,0.352797,81808.0,81784.0,0.0003368]
[1744260167395,0.36137739,81808.0,81788.0,0.25676]
[1744260167635,0.244509,81797.0,81790.0,0.244526]
[1744260167814,0.244514,81795.0,81791.0,0.12055382]
[1744260168014,0.012225,81793.0,81789.0,0.1092411]
[1744260168217,0.244522,81792.0,81790.0,0.12055382]
[1744260168416,0.244519,81794.0,81790.0,0.12055382]
[1744260168776,0.01142458,81793.0,81790.0,0.12055382]
[1744260169248,0.26817058,81793.0,81791.0,0.07]
[1744260169452,0.012226,81792.0,81791.0,0.07]
[1744260170006,0.07245058,81792.0,81791.0,0.07]
[1744260170664,0.08387164,81792.0,81791.0,0.07]
[1744260171024,0.10671408,81792.0,81791.0,0.07]
[1744260171285,0.71527999,81792.0,81791.0,0.07]
[1744260171483,0.71527999,81792.0,81790.0,0.00042532]
[1744260171484,0.256751,81791.0,81790.0,0.00042532]
[1744260171676,0.27959344,81791.0,81790.0,0.00042532]
[1744260171878,0.29953004,81791.0,81790.0,0.00042532]
[1744260172866,0.30238519,81791.0,81790.0,0.00042532]
[1744260174203,0.50238519,81791.0,81790.0,0.00042532]
[1744260174738,0.94968519,81791.0,81790.0,0.00042532]
[1744260175778,0.92684275,81791.0,81790.0,0.00042532]
[1744260176759,0.91542169,81791.0,81790.0,0.00042532]
[1744260180019,0.86812169,81791.0,81790.0,0.00042532]
[1744260191887,0.21137069,81791.0,81790.0,0.00042532]
[1744260192261,0.01137069,81791.0,81790.0,0.00042532]
[1744260192626,0.4,81794.0,81790.0,0.00042532]
[1744260193204,0.01133639,81793.0,81790.0,0.00042532]
[1744260193410,0.244518,81794.0,81790.0,0.00042532]
[1744260193639,0.01133639,81793.0,81790.0,0.00042532]
[1744260196075,0.0085748,81792.0,81790.0,0.00042532]
[1744260196463,0.01991858,81791.0,81790.0,0.00042532]
[1744260200483,0.26444358,81791.0,81790.0,0.00042532]
[1744260201179,0.46444358,81791.0,81790.0,0.00042532]
[1744260204574,0.21991858,81791.0,81790.0,0.00042532]
[1744260205150,0.46444358,81791.0,81790.0,0.00042532]
[1744260205294,0.23137236,81791.0,81790.0,0.00042532]
[1744260205696,0.47589736,81791.0,81790.0,0.00042532]
[1744260207480,0.46732256,81791.0,81790.0,0.00042532]
[1744260207755,0.45586878,81791.0,81790.0,0.00042532]
[1744260208275,0.46809478,81791.0,81790.0,0.00042532]
[1744260211784,0.21134378,81791.0,81790.0,0.00042532]
[1744260211995,0.45586878,81791.0,81790.0,0.00042532]
[1744260212153,0.21134378,81791.0,81790.0,0.00042532]
[1744260215529,0.21134378,81791.0,81790.0,0.25717932]
[1744260215950,0.21134378,81791.0,81790.0,0.37773314]
[1744260216156,0.01134378,81791.0,81790.0,0.46349601]
[1744260216358,0.2,81811.0,81807.0,0.244476]
[1744260216739,0.00948322,81810.0,81808.0,0.244472]
[1744260216942,0.00948322,81810.0,81809.0,0.244471]
[1744260217494,0.01250283,81813.0,81809.0,0.244471]
[1744260217718,0.00947836,81810.0,81809.0,0.244471]
[1744260217851,0.256679,81814.0,81809.0,0.244471]
[1744260218053,0.00947836,81810.0,81809.0,0.244471]
[1744260218391,0.256679,81814.0,81809.0,0.244471]
[1744260218794,0.244458,81814.0,81809.0,0.244471]
[1744260219311,0.444454,81815.0,81810.0,0.244468]
[1744260220099,0.24446,81813.0,81809.0,0.244471]
[1744260220300,0.2,81813.0,81809.0,0.244471]
[1744260220477,0.44446,81813.0,81808.0,0.244472]
[1744260220875,0.2,81813.0,81807.0,0.256694]
[1744260221075,0.2,81813.0,81810.0,0.244467]
[1744260221281,0.444456,81815.0,81810.0,0.244467]
[1744260222414,0.444456,81815.0,81811.0,0.244465]
[1744260222773,0.244457,81814.0,81808.0,0.244472]
[1744260222989,0.244457,81814.0,81809.0,0.244469]
[1744260223183,0.2,81812.0,81809.0,0.244469]
[1744260223848,0.2,81812.0,81810.0,0.244468]
[1744260224422,0.2,81812.0,81807.0,0.244471]
[1744260224725,0.256688,81811.0,81801.0,0.012224]
[1744260224929,0.244471,81810.0,81805.0,0.24448]
[1744260225129,0.244472,81809.0,81805.0,0.244482]
[1744260225532,0.256692,81810.0,81805.0,0.244482]
[1744260225935,0.244469,81810.0,81806.0,0.244479]
[1744260226094,0.25668,81814.0,81807.0,0.244477]
[1744260226095,0.2,81808.0,81807.0,0.244477]
[1744260228140,0.2,81809.0,81805.0,0.244483]
[1744260228344,0.444473,81809.0,81805.0,0.244483]
[1744260228547,0.2,81809.0,81806.0,0.244479]
[1744260228707,0.0095161,81808.0,81806.0,0.244479]
[1744260231569,0.444471,81810.0,81806.0,0.244479]
[1744260231771,0.00946263,81807.0,81806.0,0.244479]
[1744260232094,0.00946749,81807.0,81806.0,0.244479]
[1744260232293,0.244472,81809.0,81806.0,0.244479]
[1744260232617,0.00946749,81807.0,81806.0,0.244479]
[1744260232771,0.244472,81809.0,81806.0,0.244479]
[1744260232939,0.00946749,81807.0,81806.0,0.244479]
[1744260233137,0.2,81808.0,81806.0,0.244479]
[1744260233472,0.00946749,81807.0,81805.0,0.244483]
[1744260233670,0.00946749,81807.0,81806.0,0.24448]
[1744260234069,0.00946749,81807.0,81806.0,0.256704]
[1744260234809,0.2,81809.0,81807.0,0.244477]
[1744260236129,0.2,81809.0,81808.0,0.244474]
[1744260236515,0.2,81809.0,81807.0,0.244477]
[1744260237457,0.2,81809.0,81808.0,0.244474]
[1744260237657,0.2,81809.0,81807.0,0.244477]
[1744260237853,0.2,81809.0,81804.0,0.012224]
[1744260238000,0.244479,81807.0,81803.0,0.244489]
[1744260238197,0.456698,81808.0,81804.0,0.244485]
[1744260238551,0.444475,81808.0,81804.0,0.244485]
[1744260238767,0.456698,81808.0,81804.0,0.244485]
[1744260238960,0.2,81808.0,81805.0,0.244482]
[1744260239164,0.2,81809.0,81807.0,0.244477]
[1744260239506,0.444472,81809.0,81805.0,0.256706]
[1744260239786,0.2,81809.0,81806.0,0.24448]
[1744260239951,0.2,81809.0,81807.0,0.244475]
[1744260240151,0.2,81808.0,81807.0,0.244475]
[1744260240362,0.2,81808.0,81806.0,0.24448]
[1744260240763,0.244481,81806.0,81802.0,0.256716]
[1744260240962,0.244481,81806.0,81803.0,0.244488]
[1744260241370,0.212223,81807.0,81804.0,0.012224]
[1744260241371,0.2,81807.0,81804.0,0.012224]
[1744260241544,0.244481,81806.0,81802.0,0.244491]
[1744260241750,0.256705,81806.0,81802.0,0.244491]
[1744260242105,0.256705,81806.0,81799.0,0.012225]
[1744260242106,0.244493,81802.0,81799.0,0.244498]
[1744260242440,0.244496,81801.0,81798.0,0.244498]
[1744260242643,0.244496,81801.0,81799.0,0.244501]
[1744260242845,0.25672,81801.0,81796.0,0.24451]
[1744260243078,0.012224,81800.0,81795.0,0.012225]
[1744260243480,0.012224,81801.0,81797.0,0.244504]
[1744260243683,0.012224,81801.0,81792.0,0.15004]
[1744260243684,0.244514,81795.0,81792.0,0.15004]
[1744260243929,0.24451,81797.0,81793.0,0.244519]
[1744260244064,0.00946095,81794.0,81793.0,0.244519]
[1744260244277,0.444512,81796.0,81792.0,0.39456]
[1744260244477,0.00945618,81794.0,81792.0,0.39456]
[1744260244677,0.444512,81796.0,81792.0,0.39456]
[1744260244878,0.2,81796.0,81793.0,0.244517]
[1744260245083,0.00945543,81795.0,81793.0,0.244517]
[1744260246069,0.2,81794.0,81793.0,0.244517]
[1744260246514,0.20944882,81794.0,81793.0,0.244517]
[1744260247168,0.20944882,81794.0,81792.0,0.406787]
[1744260247360,0.45396682,81794.0,81792.0,0.15004]
[1744260247861,0.20944882,81794.0,81792.0,0.39456]
[1744260248259,0.20944882,81794.0,81792.0,0.406786]
[1744260249125,0.2,81793.0,81792.0,0.406786]
[1744260249498,0.20945058,81793.0,81792.0,0.57313982]
[1744260249853,0.2,81793.0,81792.0,0.57313982]
[1744260250229,0.2,81804.0,81800.0,0.244498]
[1744260250455,0.2,81804.0,81803.0,0.244489]
[1744260251074,0.2,81804.0,81803.0,0.256713]
[1744260253271,0.2,81807.0,81806.0,0.24448]
[1744260253674,0.2,81807.0,81805.0,0.244482]
[1744260254137,0.444478,81807.0,81804.0,0.244486]
[1744260254289,0.19361553,81806.0,81805.0,0.244483]
[1744260254817,0.19361553,81806.0,81804.0,0.244486]
[1744260255437,0.43809753,81806.0,81804.0,0.244486]
[1744260255625,0.43809753,81806.0,81803.0,0.244489]
[1744260256573,0.00857948,81805.0,81803.0,0.244489]
[1744260256793,0.00857948,81805.0,81804.0,0.244486]
[1744260257326,0.00857948,81805.0,81802.0,0.256715]
[1744260257628,0.19361553,81806.0,81803.0,0.244489]
[1744260257927,0.19361553,81806.0,81805.0,0.244483]
[1744260258125,0.19361553,81806.0,81804.0,0.244486]
[1744260258697,0.19361553,81806.0,81805.0,0.244483]
[1744260259036,0.19361553,81806.0,81804.0,0.244486]
[1744260259251,0.43809653,81806.0,81804.0,0.244486]
[1744260260137,0.43809653,81806.0,81803.0,0.244489]
[1744260260519,0.19361553,81806.0,81804.0,0.244485]
[1744260261403,0.19361553,81806.0,81805.0,0.244483]
[1744260263141,0.4,81807.0,81806.0,0.24448]
[1744260263510,0.4,81807.0,81805.0,0.244483]
[1744260263697,0.244472,81809.0,81806.0,0.24448]
[1744260263897,0.244475,81808.0,81806.0,0.24448]
[1744260264316,0.24448,81806.0,81802.0,0.256716]
[1744260264515,0.444478,81807.0,81805.0,0.244483]
[1744260265149,0.2,81806.0,81805.0,0.244483]
[1744260267895,0.22002633,81806.0,81805.0,0.244483]
[1744260268613,0.22002633,81806.0,81804.0,0.244485]
[1744260269060,0.00858271,81805.0,81804.0,0.244485]
[1744260269937,0.2,81806.0,81805.0,0.244483]
[1744260270281,0.244476,81808.0,81805.0,0.244483]
[1744260271180,0.2,81805.0,81797.0,0.012225]
[1744260271383,0.244495,81802.0,81799.0,0.2445]
[1744260271588,0.212224,81805.0,81798.0,0.256727]
[1744260271755,0.012224,81803.0,81795.0,0.012225]
[1744260271960,0.244488,81804.0,81800.0,0.244497]
[1744260272148,0.2,81799.0,81794.0,0.012225]
[1744260272351,0.244523,81792.0,81789.0,0.392249]
[1744260272553,0.012225,81797.0,81790.0,0.01265132]
[1744260272898,0.2559567,81796.0,81792.0,0.244519]
[1744260273119,0.244514,81795.0,81792.0,0.244519]
[1744260273608,0.2559567,81796.0,81792.0,0.012226]
[1744260273797,0.00946455,81794.0,81792.0,0.012226]
[1744260274036,0.0114457,81795.0,81792.0,0.012226]
[1744260274241,0.0114457,81795.0,81793.0,0.244517]
[1744260275171,0.0114457,81795.0,81794.0,0.244516]
[1744260275407,0.256738,81797.0,81794.0,0.244516]
[1744260275846,0.00858488,81796.0,81794.0,0.244516]
[1744260276531,0.256738,81797.0,81794.0,0.244516]
[1744260277539,0.244501,81800.0,81796.0,0.24451]
[1744260277768,0.244501,81801.0,81797.0,0.256731]
[1744260277993,0.012223,81807.0,81801.0,0.012224]
[1744260278226,0.244486,81805.0,81801.0,0.256719]
[1744260278447,0.244484,81805.0,81802.0,0.244491]
[1744260278674,0.00858507,81804.0,81802.0,0.244491]
[1744260278901,0.25307207,81804.0,81800.0,0.256721]
[1744260279133,0.00858507,81803.0,81801.0,0.244495]
[1744260279372,0.00858507,81803.0,81802.0,0.256716]
[1744260280095,0.01785183,81803.0,81802.0,0.256716]
[1744260280331,0.00858507,81803.0,81802.0,0.256716]
[1744260280525,0.00926676,81803.0,81802.0,0.256716]
[1744260281291,0.20926676,81803.0,81802.0,0.256716]
[1744260281741,0.20926676,81803.0,81801.0,0.012224]
[1744260281888,0.20926676,81803.0,81802.0,0.244492]
[1744260282532,0.21785217,81803.0,81802.0,0.244492]
[1744260284285,0.21785217,81803.0,81801.0,0.244495]
[1744260285021,0.00858541,81802.0,81801.0,0.244495]
[1744260285249,0.01781195,81802.0,81801.0,0.244495]
[1744260285683,0.00922654,81802.0,81801.0,0.244495]
[1744260285905,0.00922654,81802.0,81800.0,0.25672]
[1744260286619,0.00922654,81802.0,81801.0,0.244495]
[1744260286848,0.00922654,81802.0,81801.0,0.256719]
[1744260288190,0.00922654,81802.0,81798.0,0.244504]
[1744260288384,0.20922654,81802.0,81801.0,0.244495]
[1744260288681,0.20922654,81802.0,81800.0,0.244495]
[1744260288976,0.21781212,81802.0,81801.0,0.244495]
[1744260289153,0.01781212,81802.0,81801.0,0.244495]
[1744260289478,0.01781212,81802.0,81801.0,0.256719]
[1744260291310,0.21781212,81802.0,81801.0,0.256719]
[1744260292515,0.20922654,81802.0,81801.0,0.256719]
[1744260294910,0.20922654,81802.0,81800.0,0.244495]
[1744260295129,0.00922654,81802.0,81800.0,0.256719]
[1744260295331,0.00922654,81802.0,81801.0,0.256719]
[1744260296542,0.244484,81805.0,81803.0,0.244488]
[1744260296972,0.00858532,81804.0,81803.0,0.256713]
[1744260297168,0.00858532,81804.0,81803.0,0.244489]
[1744260297869,0.00858532,81804.0,81803.0,0.256713]
[1744260298473,0.00858532,81809.0,81807.0,0.244477]
[1744260298691,0.00858532,81809.0,81808.0,0.244474]
[1744260298893,0.00858532,81809.0,81808.0,0.256697]
[1744260299273,0.2,81811.0,81810.0,0.256691]
[1744260299669,0.2,81811.0,81810.0,0.244468]
[1744260300327,0.2,81811.0,81810.0,0.256691]
[1744260300862,0.2,81811.0,81810.0,0.244468]
[1744260301301,0.2,81812.0,81810.0,0.244468]
[1744260301504,0.444464,81812.0,81810.0,0.244468]
[1744260301902,0.00858253,81811.0,81810.0,0.244468]
[1744260302194,0.20858253,81811.0,81810.0,0.244468]
[1744260303062,0.46527353,81811.0,81806.0,0.244477]
[1744260303260,0.244472,81809.0,81806.0,0.244477]
[1744260303465,0.24447,81810.0,81806.0,0.244477]
[1744260303466,0.24447,81810.0,81807.0,0.244475]
[1744260303763,0.22080553,81811.0,81805.0,0.244483]
[1744260303764,0.244474,81808.0,81805.0,0.244483]
[1744260303989,0.00894499,81809.0,81808.0,0.244474]
[1744260304179,0.2,81810.0,81808.0,0.244474]
[1744260305372,0.2,81810.0,81809.0,0.244471]
[1744260305774,0.2,81810.0,81809.0,0.256694]
[1744260305948,0.2,81810.0,81806.0,0.256703]
[1744260306310,0.2,81810.0,81808.0,0.244471]
[1744260306653,0.2,81810.0,81808.0,0.244474]
[1744260307297,0.2,81809.0,81808.0,0.244474]
[1744260311888,0.2,81809.0,81807.0,0.244471]
[1744260312070,0.2,81809.0,81808.0,0.244474]
[1744260312279,0.2,81809.0,81808.0,0.256697]
[1744260313562,0.2,81809.0,81806.0,0.012224]
[1744260313766,0.2,81809.0,81808.0,0.244474]
[1744260314150,0.244468,81810.0,81808.0,0.244474]
[1744260314940,0.256689,81811.0,81804.0,0.244484]
[1744260314941,0.012223,81808.0,81804.0,0.244484]
[1744260315213,0.012225,81799.0,81792.0,0.19342]
[1744260315441,0.244507,81797.0,81792.0,0.14572]
[1744260315664,0.256751,81791.0,81790.0,0.00042532]
[1744260316022,0.26532338,81791.0,81790.0,0.00042532]
[1744260316427,0.00857238,81791.0,81790.0,0.24495332]
[1744260316856,0.244523,81792.0,81790.0,0.00042532]
[1744260317032,0.00857238,81791.0,81790.0,0.00042532]
[1744260317228,0.20857238,81791.0,81790.0,0.24495332]
[1744260317428,0.20857238,81791.0,81790.0,0.30487932]
[1744260317656,0.20857238,81791.0,81790.0,0.42543314]
[1744260317975,0.2,81791.0,81790.0,0.42543314]
[1744260318299,0.2,81799.0,81798.0,0.244504]
[1744260318725,0.20853349,81799.0,81798.0,0.256729]
[1744260327197,0.00853349,81799.0,81798.0,0.256729]
[1744260327567,0.2,81803.0,81802.0,0.256716]
[1744260328486,0.244487,81804.0,81801.0,0.244494]
[1744260328668,0.244483,81805.0,81802.0,0.24449]
[1744260328904,0.244484,81805.0,81801.0,0.256718]
[1744260329107,0.244484,81805.0,81802.0,0.244492]
[1744260330152,0.2,81803.0,81802.0,0.012224]
[1744260330386,0.2,81803.0,81802.0,0.256716]
[1744260330618,0.2,81803.0,81802.0,0.37726982]
[1744260331150,0.2,81812.0,81811.0,0.244463]
[1744260332062,0.2,81812.0,81811.0,0.256686]
[1744260332286,0.0452,81826.0,81813.0,0.256681]
[1744260332287,0.2,81814.0,81813.0,0.256681]
[1744260333223,0.24444,81820.0,81817.0,0.244446]
[1744260333534,0.256661,81820.0,81816.0,0.24445]
[1744260333736,0.244445,81818.0,81816.0,0.24445]
[1744260333890,0.00779214,81819.0,81818.0,0.244444]
[1744260334092,0.012221,81821.0,81818.0,0.244444]
[1744260334298,0.25222928,81819.0,81816.0,0.256672]
[1744260334499,0.244442,81819.0,81816.0,0.256672]
[1744260334703,0.00779214,81818.0,81816.0,0.256672]
[1744260334910,0.244447,81817.0,81814.0,0.244448]
[1744260335266,0.00780186,81816.0,81814.0,0.244448]
[1744260335667,0.244446,81818.0,81814.0,0.244448]
[1744260335968,0.244446,81818.0,81815.0,0.244453]
[1744260336546,0.244446,81818.0,81816.0,0.24445]
[1744260336731,0.244446,81818.0,81815.0,0.244453]
[1744260337224,0.244443,81819.0,81816.0,0.012222]
[1744260337451,0.244442,81819.0,81816.0,0.24445]
[1744260337722,0.244445,81818.0,81816.0,0.24445]
[1744260338230,0.244445,81818.0,81815.0,0.25667]
[1744260341501,0.2,81820.0,81818.0,0.244444]
[1744260341702,0.2,81820.0,81816.0,0.256671]
[1744260341703,0.44444,81820.0,81816.0,0.256671]
[1744260341960,0.2,81820.0,81816.0,0.012222]
[1744260342361,0.2,81820.0,81817.0,0.244447]
[1744260342544,0.444444,81820.0,81818.0,0.244444]
[1744260342885,0.244442,81819.0,81817.0,0.244447]
[1744260343022,0.244445,81818.0,81816.0,0.244445]
[1744260343627,0.244445,81818.0,81815.0,0.244453]
[1744260343822,0.2,81820.0,81816.0,0.24445]
[1744260344026,0.244444,81819.0,81816.0,0.24445]
[1744260345290,0.244445,81818.0,81816.0,0.24445]
[1744260345675,0.244444,81819.0,81817.0,0.244447]
[1744260346021,0.244444,81818.0,81816.0,0.24445]
[1744260347203,0.244444,81819.0,81816.0,0.24445]
[1744260348342,0.244445,81818.0,81816.0,0.24445]
[1744260348797,0.00769842,81817.0,81816.0,0.24445]
[1744260349877,0.00769842,81817.0,81816.0,0.256672]
[1744260350227,0.44450887,81821.0,81817.0,0.244446]
[1744260350435,0.44450887,81821.0,81819.0,0.244441]
[1744260351081,0.20007287,81821.0,81819.0,0.244441]
[1744260351257,0.20007287,81821.0,81818.0,0.012222]
[1744260351258,7.287e-05,81821.0,81818.0,0.012222]